bitfinex/quotes_BTCUSD_20260127
["timestamp","ask_amount","ask_price","bid_price","bid_amount"]
[1769513634372,0.0004,88013.0,88012.0,0.05681043]
[1769513635868,0.0001475,88017.0,88014.0,0.02667822]
[1769513636304,0.0001523,88027.0,88015.0,0.0568081]
[1769513636496,0.0001523,88027.0,87999.0,0.34091252]
[1769513636497,0.11374739,88026.0,88016.0,0.0761224]
[1769513636707,0.05679884,88024.0,88016.0,0.00795319]
[1769513636910,0.05679884,88024.0,88014.0,0.01136182]
[1769513636911,0.10181428,88023.0,88014.0,0.01136182]
[1769513637088,0.10181428,88023.0,88015.0,0.01136169]
[1769513637248,0.10181428,88023.0,88014.0,0.06817093]
[1769513637447,0.10181428,88023.0,88014.0,0.01136182]
[1769513637651,0.10181428,88023.0,88013.0,0.06817067]
[1769513637872,0.10181428,88023.0,88012.0,0.06817198]
[1769513638072,0.10181428,88023.0,88013.0,0.01136195]
[1769513638271,0.10181428,88023.0,88014.0,0.01136182]
[1769513638475,0.05679884,88024.0,88014.0,0.01136182]
[1769513638876,0.05679884,88024.0,88014.0,0.06817088]
[1769513639054,0.05679884,88024.0,88014.0,0.06817094]
[1769513639498,0.05679884,88024.0,88015.0,0.01136169]
[1769513639707,0.05679884,88024.0,88017.0,0.01136144]
[1769513639931,0.05679884,88024.0,88018.0,0.02624597]
[1769513640452,0.05679884,88024.0,88018.0,0.05680643]
[1769513640688,0.0001523,88027.0,88020.0,0.02624597]
[1769513641722,0.0001523,88027.0,88010.0,0.28310183]
[1769513641723,0.10181428,88026.0,88011.0,0.09441893]
[1769513641903,0.10181428,88026.0,88012.0,0.01136208]
[1769513642058,0.10181428,88026.0,88011.0,0.09441893]
[1769513642269,0.10181428,88026.0,88013.0,0.01136195]
[1769513642495,0.10181428,88026.0,88012.0,0.01136208]
[1769513642897,0.10181428,88026.0,88013.0,0.01136195]
[1769513643371,0.10181428,88026.0,88014.0,0.01136182]
[1769513643620,0.10181428,88026.0,88013.0,0.01136195]
[1769513644038,0.10181428,88026.0,88015.0,0.01136169]
[1769513644265,0.10181428,88026.0,88014.0,0.01136182]
[1769513645298,0.10181428,88026.0,88013.0,0.09216834]
[1769513645536,0.10181428,88026.0,88014.0,0.01136182]
[1769513646462,0.10181428,88026.0,88013.0,0.09216834]
[1769513646958,0.10181428,88026.0,88014.0,0.01136182]
[1769513647187,0.10181428,88026.0,88014.0,0.06817075]
[1769513647432,0.10181428,88026.0,88015.0,0.01136169]
[1769513648355,0.10181428,88026.0,88014.0,0.06817072]
[1769513648578,0.10181428,88026.0,88015.0,0.01136169]
[1769513649058,0.10181428,88026.0,88016.0,0.01136157]
[1769513649289,0.10181428,88026.0,88015.0,0.06816998]
[1769513649500,0.0001523,88027.0,88018.0,0.01136131]
[1769513650141,0.0001523,88027.0,88020.0,0.01136105]
[1769513650352,0.0001523,88027.0,88019.0,0.07957316]
[1769513650966,0.0001523,88027.0,88019.0,0.03412843]
[1769513651146,0.0001523,88027.0,88019.0,0.01136118]
[1769513651373,0.0001523,88027.0,88020.0,0.0341283]
[1769513651585,0.0001523,88027.0,88021.0,0.02276725]
[1769513660870,0.0001523,88027.0,88022.0,0.03412804]
[1769513661062,0.0001523,88027.0,88023.0,0.02276725]
[1769513663028,0.05460917,88038.0,88023.0,0.02276725]
[1769513663209,0.05679688,88033.0,88023.0,0.02276725]
[1769513663620,0.05679688,88033.0,88025.0,0.02317281]
[1769513664699,0.05679688,88033.0,88021.0,0.06816534]
[1769513664907,0.05679688,88033.0,88021.0,0.01136092]
[1769513665556,0.01425241,88032.0,88021.0,0.01136092]
[1769513665981,0.01425241,88032.0,88020.0,0.02423149]
[1769513668352,0.01425241,88032.0,88020.0,0.03559254]
[1769513668869,0.05679688,88033.0,88020.0,0.09239776]
[1769513669078,0.05679688,88033.0,88022.0,0.06816442]
[1769513669281,0.05679688,88033.0,88023.0,0.01136066]
[1769513669746,0.05679688,88033.0,88024.0,0.01136053]
[1769513670195,0.05679688,88033.0,88024.0,0.06816305]
[1769513670434,0.05679688,88033.0,88025.0,0.0113604]
[1769513671375,0.05679688,88033.0,88024.0,0.06816295]
[1769513671591,0.05679688,88033.0,88025.0,0.0681623]
[1769513671790,0.05679688,88033.0,88025.0,0.19006682]
[1769513672281,0.05679688,88033.0,88025.0,0.13326492]
[1769513672523,0.05679688,88033.0,88026.0,0.01136027]
[1769513672993,0.05679688,88033.0,88025.0,0.1900667]
[1769513673238,0.05679688,88033.0,88025.0,0.13326492]
[1769513673468,0.05679688,88033.0,88025.0,0.12190452]
[1769513674346,0.05679688,88033.0,88028.0,0.10903305]
[1769513674574,0.05679688,88033.0,88028.0,0.09767303]
[1769513674779,0.04105332,88033.0,88028.0,0.10903305]
[1769513674990,0.04105332,88033.0,88028.0,0.09767303]
[1769513675197,0.04105332,88033.0,88028.0,0.10903305]
[1769513675424,0.04105332,88033.0,88029.0,0.01135989]
[1769513675868,0.04105332,88033.0,88028.0,0.10903305]
[1769513676076,0.04105332,88033.0,88029.0,0.01135989]
[1769513676288,0.04105332,88033.0,88028.0,0.01136002]
[1769513676587,0.04105332,88033.0,88027.0,0.06816066]
[1769513676791,0.04105332,88033.0,88028.0,0.01136002]
[1769513676994,0.04105332,88033.0,88028.0,0.06816011]
[1769513677641,0.04105332,88033.0,88029.0,0.01135989]
[1769513677848,0.04105332,88033.0,88029.0,0.13326441]
[1769513678041,0.04105332,88033.0,88029.0,0.19006341]
[1769513678445,0.04105332,88033.0,88030.0,0.09767303]
[1769513678990,0.0001523,88045.0,88031.0,0.08102947]
[1769513679195,0.0001523,88045.0,87981.0,0.12938223]
[1769513679196,0.02415404,88043.0,88025.0,0.0113604]
[1769513679409,0.02415404,88038.0,88029.0,0.05679925]
[1769513679850,0.02415404,88038.0,88029.0,0.06815923]
[1769513680056,0.0567917,88041.0,88030.0,0.06815856]
[1769513680256,0.0567917,88041.0,88031.0,0.0567977]
[1769513680672,0.0567917,88041.0,88032.0,0.05679747]
[1769513681089,0.0567917,88041.0,88032.0,0.05649747]
[1769513681303,0.0567917,88041.0,88032.0,0.06785697]
[1769513681519,0.0567917,88041.0,88033.0,0.01135937]
[1769513681926,0.0567917,88041.0,88032.0,0.06785697]
[1769513682133,0.0567917,88041.0,88033.0,0.01135937]
[1769513682723,0.0567917,88041.0,88033.0,0.06815602]
[1769513682942,0.0567917,88041.0,88034.0,0.01135924]
[1769513684088,0.0567917,88041.0,88034.0,0.06815536]
[1769513684948,0.0567917,88041.0,88034.0,0.06815547]
[1769513685364,0.0567917,88041.0,88031.0,0.15447072]
[1769513685503,0.0567917,88041.0,88031.0,0.16583035]
[1769513685717,0.0567917,88041.0,88031.0,0.01135963]
[1769513685912,0.0567917,88041.0,88033.0,0.01135937]
[1769513686138,0.0567917,88041.0,88032.0,0.0113595]
[1769513686341,0.0567917,88041.0,88034.0,0.12190452]
[1769513686748,0.0567917,88041.0,88035.0,0.10903214]
[1769513686944,0.0567917,88041.0,88036.0,0.01135898]
[1769513687146,0.0567917,88041.0,88037.0,0.09767303]
[1769513687568,0.0567917,88041.0,88037.0,0.10903189]
[1769513687917,0.0001947,88048.0,88040.0,0.15446539]
[1769513688127,0.0001947,88048.0,88040.0,0.1090315]
[1769513688328,0.0001947,88048.0,88040.0,0.09767303]
[1769513689317,0.05678344,88053.0,88040.0,0.01135847]
[1769513689684,0.13778936,88051.0,88036.0,0.06815351]
[1769513689918,0.11363532,88050.0,88038.0,0.01135873]
[1769513690103,0.02415404,88048.0,88020.0,0.27150833]
[1769513690399,0.09779404,88044.0,88032.0,0.06815681]
[1769513690642,0.0239911,88043.0,88033.0,0.0002994]
[1769513690850,0.0239911,88043.0,88028.0,0.01136002]
[1769513691064,0.0239911,88043.0,88026.0,0.16583467]
[1769513691065,0.03824351,88043.0,88026.0,0.16583467]
[1769513691277,0.09779404,88042.0,88026.0,0.09767303]
[1769513691480,0.02415404,88041.0,88026.0,0.09767303]
[1769513692648,0.0239911,88041.0,88026.0,0.09767303]
[1769513693473,0.0239911,88041.0,88026.0,0.1090333]
[1769513694017,0.0239911,88041.0,88026.0,0.09767303]
[1769513694240,0.0239911,88041.0,88026.0,0.16583463]
[1769513694436,0.0239911,88041.0,88026.0,0.1090333]
[1769513695017,0.09535156,88039.0,88025.0,0.0001529]
[1769513695218,0.27150833,88040.0,88025.0,0.0001529]
[1769513695219,0.02254091,88036.0,88025.0,0.0001529]
[1769513695427,0.02254091,88035.0,88025.0,0.0001529]
[1769513696989,0.05678344,88044.0,88035.0,0.01]
[1769513697632,0.01425241,88043.0,88035.0,0.01]
[1769513697837,0.01425241,88043.0,88028.0,0.10185517]
[1769513698251,0.01425241,88043.0,88028.0,0.11321519]
[1769513698435,0.01425241,88043.0,88030.0,0.01135976]
[1769513698635,0.01425241,88043.0,88028.0,0.11321519]
[1769513698827,0.01425241,88043.0,88028.0,0.01136002]
[1769513699047,0.10960397,88043.0,88028.0,0.01136002]
[1769513699470,0.10960397,88043.0,88029.0,0.01135989]
[1769513700699,0.10960397,88043.0,88027.0,0.01136015]
[1769513700897,0.10960397,88043.0,88029.0,0.01135989]
[1769513701909,0.09535156,88038.0,88025.0,0.0001529]
[1769513702140,0.09535156,88035.0,88025.0,0.0001529]
[1769513702380,0.11789247,88035.0,88025.0,0.0001529]
[1769513702811,0.02254091,88035.0,88025.0,0.0001529]
[1769513703043,0.27150833,88040.0,88025.0,0.0115133]
[1769513703262,0.27150833,88040.0,88025.0,0.0001529]
[1769513703479,0.29404924,88040.0,88025.0,0.0001529]
[1769513703715,0.01425241,88039.0,88025.0,0.0001529]
[1769513705037,0.05678344,88044.0,88029.0,0.10185517]
[1769513705249,0.11798281,88043.0,88031.0,0.10185517]
[1769513705460,0.00425241,88043.0,88032.0,0.00745774]
[1769513706774,0.00425241,88043.0,88031.0,0.00745774]
[1769513707800,0.00425241,88043.0,88031.0,0.01135963]
[1769513708012,0.00425241,88043.0,88032.0,0.01881814]
[1769513708429,0.05678344,88044.0,88032.0,0.01881814]
[1769513708430,0.05678344,88044.0,88033.0,0.01135937]
[1769513708692,0.11375282,88043.0,88034.0,0.00745847]
[1769513708899,0.05678344,88044.0,88034.0,0.00745847]
[1769513709130,0.11375282,88043.0,88034.0,0.00745847]
[1769513709342,0.05678344,88044.0,88034.0,0.00745847]
[1769513709583,0.11375316,88043.0,88034.0,0.00745847]
[1769513709793,0.05678344,88044.0,88035.0,0.06815468]
[1769513710044,0.11375313,88043.0,88036.0,0.01135898]
[1769513710249,0.05678344,88044.0,88035.0,0.06815468]
[1769513710459,0.11375413,88043.0,88035.0,0.06815468]
[1769513710674,0.05678344,88044.0,88036.0,0.01881728]
[1769513710889,0.05678344,88044.0,88037.0,0.03422186]
[1769513711147,0.05678344,88044.0,88039.0,0.0113586]
[1769513711351,0.0004,88052.0,88040.0,0.12471817]
[1769513711564,0.11374715,88051.0,88040.0,0.12471817]
[1769513711783,0.0004,88052.0,88040.0,0.12471817]
[1769513711996,0.0004,88052.0,88040.0,0.3962265]
[1769513712426,0.0004,88052.0,88040.0,0.40758497]
[1769513712646,0.0004,88052.0,88042.0,0.01135821]
[1769513713114,0.0004,88052.0,88043.0,0.022863]
[1769513713545,0.0004,88052.0,88044.0,0.022863]
[1769513714001,0.0004,88052.0,88035.0,0.10185517]
[1769513714214,0.01,88044.0,88036.0,0.01135898]
[1769513714427,0.01,88044.0,88035.0,0.17611644]
[1769513714428,0.27150833,88050.0,88035.0,0.01135911]
[1769513714657,0.02254091,88048.0,88037.0,0.01135886]
[1769513714844,0.02254091,88048.0,88038.0,0.01135873]
[1769513715060,0.02254091,88048.0,88038.0,0.06815233]
[1769513715274,0.02254091,88048.0,88039.0,0.0113586]
[1769513715483,0.02254091,88048.0,88038.0,0.01135873]
[1769513715920,0.02254091,88048.0,88038.0,0.06815235]
[1769513716147,0.02254091,88048.0,88038.0,0.01135873]
[1769513716378,0.02254091,88048.0,88038.0,0.06815229]
[1769513716587,0.02254091,88048.0,88039.0,0.0681516]
[1769513716802,0.00465241,88052.0,88040.0,0.01135847]
[1769513717046,0.00465241,88052.0,88036.0,0.0681538]
[1769513717301,0.00465241,88052.0,88039.0,0.06815138]
[1769513717534,0.00465241,88052.0,88039.0,0.06815153]
[1769513717767,0.02719332,88052.0,88040.0,0.01135847]
[1769513717994,0.02719332,88052.0,88039.0,0.0113586]
[1769513718445,0.02719332,88052.0,88040.0,0.01135847]
[1769513719585,0.02719332,88052.0,88040.0,0.06815056]
[1769513719830,0.02719332,88052.0,88040.0,0.01135847]
[1769513720279,0.0004,88052.0,88043.0,0.06814839]
[1769513720476,0.0004,88052.0,88044.0,0.01770667]
[1769513720962,0.0004,88052.0,88048.0,0.01135744]
[1769513721207,0.05678916,88054.0,88048.0,0.01135744]
[1769513721208,0.05678916,88054.0,88049.0,0.10185517]
[1769513721690,0.05678916,88054.0,88048.0,0.01135744]
[1769513722355,0.05678916,88054.0,88048.0,0.09386502]
[1769513722567,0.02405801,88063.0,88050.0,0.01135718]
[1769513722787,0.05677881,88061.0,88051.0,0.09386502]
[1769513722991,0.05677881,88061.0,88053.0,0.09386502]
[1769513723210,0.05677881,88061.0,88049.0,0.01135731]
[1769513723438,0.05677881,88061.0,88051.0,0.01135705]
[1769513723850,0.05677881,88061.0,88048.0,0.07537273]
[1769513723851,0.05677881,88061.0,88058.0,0.01135615]
[1769513724059,0.05677881,88061.0,88052.0,0.03434256]
[1769513724060,0.11365053,88060.0,88054.0,0.09386502]
[1769513724280,0.05677881,88061.0,88054.0,0.10522168]
[1769513724483,0.05677881,88061.0,88054.0,0.09386502]
[1769513724684,0.05677881,88061.0,88053.0,0.01135679]
[1769513725060,0.05677881,88061.0,88052.0,0.02298564]
[1769513725495,0.05677881,88061.0,88051.0,0.01744937]
[1769513725871,0.05677881,88061.0,88049.0,0.09354429]
[1769513727438,0.07961045,88061.0,88042.0,0.11213071]
[1769513727702,0.07961045,88061.0,88043.0,0.01135808]
[1769513727880,0.07961045,88061.0,88044.0,0.00722819]
[1769513728079,0.07961045,88061.0,88044.0,0.01858614]
[1769513728287,0.07961045,88061.0,88044.0,0.11213043]
[1769513728536,0.05677881,88061.0,88046.0,0.09354429]
[1769513728736,0.05677881,88061.0,88051.0,0.0231545]
[1769513728968,0.05677881,88061.0,88052.0,0.09354429]
[1769513730397,0.0004,88064.0,88054.0,0.09354429]
[1769513730610,0.11356953,88063.0,88054.0,0.09354429]
[1769513730787,0.00425241,88062.0,88048.0,0.10490173]
[1769513730992,0.00425241,88062.0,88049.0,0.01135731]
[1769513731378,0.00425241,88062.0,88048.0,0.09354429]
[1769513731598,0.02283164,88061.0,88044.0,0.01893423]
[1769513732201,0.02283164,88061.0,88045.0,0.01135782]
[1769513732638,0.02283164,88061.0,88046.0,0.01135769]
[1769513732793,0.02283164,88061.0,88045.0,0.16169115]
[1769513732993,0.02283164,88061.0,88045.0,0.09354429]
[1769513733188,0.02283164,88061.0,88044.0,0.00757628]
[1769513733390,0.02283164,88059.0,88042.0,0.00757628]
[1769513733640,0.02283164,88059.0,88044.0,0.01135795]
[1769513733878,0.02283164,88059.0,88044.0,0.01893405]
[1769513734522,0.02283164,88059.0,88046.0,0.01135769]
[1769513734933,0.09803584,88060.0,88046.0,0.01135769]
[1769513735380,0.09803584,88060.0,88047.0,0.01135757]
[1769513735584,0.09803584,88060.0,88046.0,0.06814592]
[1769513736016,0.09803584,88060.0,88046.0,0.01135769]
[1769513736243,0.09803584,88060.0,88045.0,0.01135782]
[1769513736828,0.09803584,88060.0,88046.0,0.0231545]
[1769513738196,0.09803584,88060.0,88046.0,0.03451219]
[1769513738687,0.09803584,88060.0,88047.0,0.0231545]
[1769513739122,0.09803584,88060.0,88047.0,0.01135757]
[1769513739321,0.09803584,88060.0,88048.0,0.0231545]
[1769513740511,0.05677755,88063.0,88048.0,0.0231545]
[1769513740719,0.11786062,88062.0,88048.0,0.0231545]
[1769513741032,0.11360821,88061.0,88048.0,0.0231545]
[1769513741234,0.00425241,88062.0,88050.0,0.01135718]
[1769513741463,0.11361499,88061.0,88052.0,0.0567843]
[1769513741691,0.05677755,88063.0,88053.0,0.07571576]
[1769513741830,0.1136144,88062.0,88054.0,0.06813967]
[1769513742071,0.05677755,88063.0,88055.0,0.00757514]
[1769513742264,0.11361421,88062.0,88055.0,0.00757514]
[1769513742450,0.05677755,88063.0,88056.0,0.00757505]
[1769513742646,0.11361677,88062.0,88057.0,0.00757496]
[1769513742856,0.05677755,88063.0,88054.0,0.01893162]
[1769513743067,0.11361677,88062.0,88054.0,0.00757496]
[1769513743270,0.05677755,88063.0,88056.0,0.02968896]
[1769513743477,0.11361638,88062.0,88058.0,0.02968896]
[1769513743683,0.11361638,88062.0,88055.0,0.10490082]
[1769513743684,0.05677755,88063.0,88059.0,0.03726348]
[1769513743893,0.11362076,88062.0,88059.0,0.03726348]
[1769513744113,0.05677755,88063.0,88059.0,0.03726348]
[1769513744319,0.11362076,88062.0,88059.0,0.00757452]
[1769513744520,0.05677755,88063.0,88055.0,0.00757452]
[1769513744720,0.11362645,88062.0,88055.0,0.04008667]
[1769513745087,0.05677755,88063.0,88055.0,0.04008667]
[1769513745412,0.11362645,88062.0,88055.0,0.04008667]
[1769513745617,0.05677755,88063.0,88055.0,0.04008667]
[1769513745827,0.11363423,88062.0,88055.0,0.04008667]
[1769513746024,0.05677755,88063.0,88055.0,0.0514432]
[1769513746221,0.11363423,88062.0,88055.0,0.04008667]
[1769513746447,0.113644,88061.0,88055.0,0.04008667]
[1769513746665,0.05677755,88063.0,88056.0,0.03440234]
[1769513746873,0.113644,88062.0,88057.0,0.00757434]
[1769513747079,0.113644,88061.0,88058.0,0.03440234]
[1769513747281,0.05677755,88063.0,88058.0,0.03440234]
[1769513747507,0.11365554,88062.0,88059.0,0.00779826]
[1769513747701,0.05677755,88063.0,88059.0,0.00779826]
[1769513747702,0.11365554,88061.0,88059.0,0.00779826]
[1769513747932,0.05677755,88063.0,88059.0,0.00779826]
[1769513748133,0.11365554,88062.0,88059.0,0.00779826]
[1769513748335,0.05677755,88063.0,88059.0,0.00779826]
[1769513748336,0.11365554,88061.0,88059.0,0.00779826]
[1769513748528,0.05677755,88063.0,88059.0,0.00779826]
[1769513748529,8.42e-05,88062.0,88059.0,0.00779826]
[1769513748687,8.42e-05,88062.0,88049.0,0.06814356]
[1769513748898,8.42e-05,88062.0,88052.0,0.01135692]
[1769513749279,8.42e-05,88062.0,88053.0,0.0231545]
[1769513749643,8.42e-05,88062.0,88054.0,0.01135666]
[1769513749789,8.42e-05,88062.0,88055.0,0.0231545]
[1769513750411,0.0001456,88071.0,88054.0,0.0231545]
[1769513750613,0.09803584,88053.0,88041.0,0.0231545]
[1769513750975,0.01,88054.0,88030.0,0.49853447]
[1769513750976,0.09803584,88050.0,88034.0,0.03451374]
[1769513751201,0.09803584,88050.0,88034.0,0.0231545]
[1769513752866,0.09803584,88048.0,88031.0,0.01150523]
[1769513753084,0.09803584,88048.0,88031.0,0.06830335]
[1769513753283,0.09803584,88048.0,88032.0,0.0113595]
[1769513753456,0.09803584,88048.0,88032.0,0.0231545]
[1769513754755,0.04337186,88048.0,88032.0,0.0231545]
[1769513755082,0.09742141,88043.0,88031.0,0.0001456]
[1769513755299,0.09742141,88041.0,88031.0,0.0001456]
[1769513755760,0.09742141,88041.0,88025.0,0.02303716]
[1769513755761,0.09742141,88039.0,88023.0,0.0001456]
[1769513755971,0.10266315,88037.0,88023.0,0.0001456]
[1769513758176,0.28108172,88041.0,88014.0,0.06831636]
[1769513758177,0.0994905,88032.0,88014.0,0.0001456]
[1769513758406,0.0994905,88030.0,88014.0,0.0001456]
[1769513759432,0.09742141,88030.0,88014.0,0.0001456]
[1769513759663,0.09742141,88028.0,88014.0,0.0001362]
[1769513759909,0.00048655,88025.0,88004.0,0.02475672]
[1769513760149,0.09742141,88024.0,88004.0,0.02475672]
[1769513760384,0.09742141,88024.0,88004.0,0.01136311]
[1769513760600,0.09742141,88024.0,88005.0,0.03611971]
[1769513760812,0.09742141,88024.0,88005.0,0.02475672]
[1769513761853,0.09742141,88023.0,88005.0,0.02475672]
[1769513768293,0.09742141,88023.0,88004.0,0.03090551]
[1769513768702,0.09742141,88023.0,88004.0,0.01136311]
[1769513768908,0.09742141,88023.0,88005.0,0.03260256]
[1769513770099,0.01205067,88022.0,88005.0,0.03260256]
[1769513770289,0.09742141,88022.0,88005.0,0.03260256]
[1769513770710,0.01205067,88021.0,88005.0,0.03260256]
[1769513771109,0.09742141,88021.0,88005.0,0.03260256]
[1769513771729,0.01205067,88020.0,88005.0,0.03260256]
[1769513773339,0.01205067,88020.0,88007.0,0.03646324]
[1769513773866,0.01205067,88020.0,88009.0,0.03646324]
[1769513774025,0.10947208,88027.0,88009.0,0.03646324]
[1769513774224,0.10947208,88027.0,88009.0,0.01136247]
[1769513774437,0.09742141,88026.0,88010.0,0.03646324]
[1769513774647,0.01205067,88025.0,88010.0,0.03646324]
[1769513774889,0.10947208,88025.0,88010.0,0.03646324]
[1769513775205,0.10947208,88025.0,88010.0,0.04782558]
[1769513775789,0.10947208,88025.0,88010.0,0.03646324]
[1769513775971,0.10947208,88025.0,88010.0,0.04782558]
[1769513776173,0.10947208,88025.0,88011.0,0.01136221]
[1769513776504,0.10947208,88025.0,88010.0,0.04782558]
[1769513776709,0.10947208,88025.0,88011.0,0.03852779]
[1769513778754,0.27133958,88021.0,88003.0,0.0002291]
[1769513778987,0.01205067,88020.0,88005.0,0.03933672]
[1769513779192,0.09742141,88019.0,88005.0,0.03933672]
[1769513780471,0.01205067,88018.0,88005.0,0.03933672]
[1769513782030,0.01205067,88018.0,88006.0,0.0405114]
[1769513788256,0.01205067,88023.0,88006.0,0.0405114]
[1769513788689,0.09253409,88024.0,88006.0,0.0405114]
[1769513788896,0.10458476,88023.0,88006.0,0.0405114]
[1769513795502,0.09253409,88019.0,88003.0,0.0002291]
[1769513795725,0.09253409,88012.0,87999.0,0.05175678]
[1769513796590,0.27160667,88010.0,87989.0,0.05198588]
[1769513796789,0.09253409,88009.0,87989.0,0.05198588]
[1769513800235,0.30444475,88010.0,87983.0,0.09491743]
[1769513800236,0.04801412,87989.0,87983.0,0.09491743]
[1769513800437,0.01387161,87989.0,87986.0,0.02587839]
[1769513800645,0.09253409,88004.0,87988.0,0.02812742]
[1769513801953,0.09253409,88003.0,87981.0,0.00065429]
[1769513802163,0.09253409,88002.0,87981.0,0.02812742]
[1769513802578,0.05677409,88004.0,87990.0,0.27160667]
[1769513802785,0.05677409,88004.0,87991.0,0.02812742]
[1769513806761,0.01205067,88003.0,87991.0,0.02812742]
[1769513821418,0.01205067,88003.0,87985.0,0.09820952]
[1769513821626,0.10418385,88003.0,87986.0,0.02374527]
[1769513822695,0.13962535,88003.0,87986.0,0.02374527]
[1769513822905,0.10418385,88003.0,87987.0,0.09820952]
[1769513823115,0.10418385,88003.0,87990.0,0.01136492]
[1769513823322,0.10418385,88003.0,87989.0,0.06818992]
[1769513823526,0.10418385,88003.0,87990.0,0.01136492]
[1769513823767,0.10418385,88003.0,87989.0,0.01136505]
[1769513823986,0.10418385,88003.0,87988.0,0.06819056]
[1769513824204,0.10418385,88003.0,87988.0,0.09193583]
[1769513824411,0.10418385,88003.0,87988.0,0.03511045]
[1769513824616,0.10418385,88003.0,87988.0,0.02374527]
[1769513826126,0.189167,87990.0,87988.0,0.12195479]
[1769513827439,0.189167,87990.0,87989.0,0.09820952]
[1769513827713,0.189167,87990.0,87985.0,0.01136557]
[1769513827714,0.02362516,88015.0,87991.0,0.01136479]
[1769513827922,0.09095048,88039.0,87980.0,0.37160667]
[1769513827923,0.05685313,88011.0,88001.0,0.02374527]
[1769513828343,0.05685313,88011.0,88002.0,0.12195479]
[1769513829901,0.05685313,88011.0,88004.0,0.01136311]
[1769513830116,0.000201,88019.0,88011.0,0.09820952]
[1769513830321,0.000201,88019.0,88011.0,0.12195479]
[1769513830527,0.0570066,88019.0,88011.0,0.12195479]
[1769513833314,0.0570066,88019.0,88011.0,0.02374527]
[1769513834782,0.11575834,88038.0,88017.0,0.01136144]
[1769513834997,0.11575834,88038.0,88020.0,0.27160667]
[1769513835204,0.11575834,88038.0,88021.0,0.01136092]
[1769513835682,0.11575834,88038.0,88020.0,0.29535194]
[1769513835883,0.11575834,88038.0,88020.0,0.02374527]
[1769513838249,0.11575834,88038.0,88020.0,0.29535194]
[1769513839110,0.11575834,88038.0,88020.0,0.02374527]
[1769513841866,0.11575834,88038.0,88019.0,0.09820952]
[1769513843087,0.11575834,88038.0,88019.0,0.109532]
[1769513845208,0.02584609,88034.0,88019.0,0.109532]
[1769513845839,0.09213318,88038.0,88019.0,0.09820952]
[1769513846046,0.09417005,88032.0,88015.0,0.02316251]
[1769513846253,0.09417005,88032.0,88015.0,0.103094]
[1769513846468,0.02606879,88033.0,88015.0,0.103094]
[1769513846469,0.02606879,88033.0,88020.0,0.36289985]
[1769513846947,0.02606879,88033.0,88021.0,0.01079181]
[1769513847156,0.02606879,88033.0,88021.0,0.02215273]
[1769513847572,0.02606879,88033.0,88021.0,0.01079181]
[1769513847791,0.02606879,88033.0,88021.0,0.02215273]
[1769513847981,0.02606879,88033.0,88021.0,0.01079181]
[1769513848462,0.02606879,88033.0,88020.0,0.27160667]
[1769513849368,0.02606879,88033.0,88021.0,0.01075184]
[1769513849901,0.02606879,88033.0,88020.0,0.27160667]
[1769513850761,0.02606879,88033.0,88020.0,0.28296772]
[1769513851593,0.02606879,88033.0,88020.0,0.33977292]
[1769513851795,0.02606879,88033.0,88020.0,0.27160667]
[1769513852023,0.02606879,88033.0,88020.0,0.28296772]
[1769513852435,0.02606879,88033.0,88021.0,0.01136092]
[1769513853056,0.02606879,88033.0,88020.0,0.28296772]
[1769513853526,0.02556879,88033.0,88017.0,0.09129318]
[1769513853764,0.27160667,88040.0,88015.0,0.01136169]
[1769513853765,0.12887349,88032.0,88015.0,0.01136169]
[1769513854184,0.03470344,88031.0,88016.0,0.06806936]
[1769513854392,0.03470344,88031.0,88017.0,0.01136144]
[1769513854832,0.03470344,88031.0,88016.0,0.01126157]
[1769513855440,0.03470344,88029.0,88015.0,0.01136169]
[1769513856082,0.03470344,88029.0,88014.0,0.0681709]
[1769513856282,0.03470344,88029.0,88016.0,0.01136157]
[1769513856485,0.03470344,88029.0,88015.0,0.06817015]
[1769513856907,0.03470344,88029.0,88015.0,0.01136169]
[1769513857127,0.03470344,88029.0,88016.0,0.01136157]
[1769513857311,0.03470344,88029.0,88015.0,0.06817016]
[1769513857451,0.03470344,88029.0,88016.0,0.01136157]
[1769513857658,0.03470344,88029.0,88017.0,0.01136144]
[1769513858715,0.03470344,88029.0,88016.0,0.01136157]
[1769513858975,0.03470344,88029.0,88015.0,0.05680812]
[1769513859129,0.03470344,88029.0,88016.0,0.01136157]
[1769513859562,0.03470344,88029.0,88015.0,0.01136169]
[1769513859739,0.03470344,88029.0,88016.0,0.06816915]
[1769513860340,0.03470344,88029.0,88017.0,0.01136144]
[1769513860792,0.03470344,88029.0,88017.0,0.06816859]
[1769513861091,0.03470344,88029.0,88017.0,0.01136144]
[1769513861318,0.03470344,88029.0,88009.0,0.09129318]
[1769513861608,0.03695272,88023.0,88004.0,0.01136311]
[1769513861833,0.09417005,88020.0,88003.0,0.01136324]
[1769513862046,0.09417005,88016.0,88003.0,0.06817921]
[1769513862242,0.03695272,88015.0,88003.0,0.06817946]
[1769513862627,0.03695272,88015.0,88003.0,0.01136324]
[1769513862827,0.09417005,88015.0,88004.0,0.01136311]
[1769513863059,0.03695272,88014.0,88002.0,0.01136337]
[1769513863266,0.03695272,88013.0,88003.0,0.01136324]
[1769513863482,0.03695272,88013.0,88000.0,0.2715311]
[1769513863684,0.03695272,88013.0,87999.0,0.0002227]
[1769513863685,0.03695272,88009.0,87999.0,0.0002227]
[1769513863890,0.09417005,88006.0,87999.0,0.0002227]
[1769513864095,0.03695272,88003.0,87999.0,0.0002227]
[1769513864298,0.03695272,88002.0,87999.0,0.0002227]
[1769513865675,0.02403556,88007.0,87999.0,0.0002227]
[1769513866846,0.11820561,88007.0,87999.0,0.0002227]
[1769513867897,0.02403556,88007.0,87999.0,0.0002227]
[1769513868137,0.02403556,88006.0,87999.0,0.0002227]
[1769513868340,0.11820561,88006.0,87999.0,0.0002227]
[1769513870547,0.09417005,88006.0,87999.0,0.0002227]
[1769513877048,0.09983311,88018.0,88002.0,0.01136337]
[1769513877254,0.09983311,88018.0,88001.0,0.0113635]
[1769513877667,0.09983311,88018.0,88000.0,0.01136363]
[1769513877878,0.09983311,88018.0,88001.0,0.0113635]
[1769513878081,0.09983311,88018.0,87999.0,0.06840522]
[1769513878257,0.09983311,88018.0,88000.0,0.02437384]
[1769513878870,0.09983311,88018.0,88000.0,0.03573747]
[1769513879247,0.09983311,88018.0,88001.0,0.0113635]
[1769513879653,0.09983311,88018.0,88000.0,0.03573747]
[1769513879853,0.09983311,88018.0,88000.0,0.02437384]
[1769513881642,0.09983311,88018.0,88000.0,0.02461374]
[1769513883983,0.09983311,88018.0,88000.0,0.02451374]
[1769513887571,0.09983311,88018.0,88001.0,0.01151335]
[1769513887727,0.09983311,88018.0,88002.0,0.02483941]
[1769513888805,0.09983311,88018.0,88002.0,0.02507931]
[1769513896825,0.09983311,88018.0,88002.0,0.0002399]
[1769513897049,0.02238977,88015.0,88002.0,0.0002399]
[1769513897211,0.09983311,88011.0,87995.0,0.0001894]
[1769513897592,0.02238977,88010.0,87995.0,0.0001894]
[1769513897797,0.09983311,88009.0,87995.0,0.0001894]
[1769513904013,0.09983311,88009.0,87996.0,0.02284232]
[1769513905955,0.02291344,88017.0,87995.0,0.0001894]
[1769513906166,0.0949329,88016.0,87998.0,0.02312352]